{"text_format":"1","workbook":"xlsx","n_sheets":4,"sheets":["記入例","入力シート","【注文書契約用】請求書","【請求総括表】"],"not_rendered":{"charts":0,"images":2,"macros":1,"external_links":0,"defined_names":4,"comments":0,"pivot_tables":0},"unopened":[],"bounds":{"document_bytes":16777216,"sheet_cells":100000,"rows_first":2000,"rows_last":500,"rows_between":2000,"halvings":0,"cell_chars":16384,"cell_head_chars":4096},"cells_cut":0,"cells_raw":0,"read":"whole","date_system":"1900"}

{"sheet":"記入例","index":0,"n_rows":16,"n_cols":1,"rows_kept":16,"cut":false,"hidden":false,"merged":[]}
["【請求書作成手順】"]
[]
["①　入力シートの黄色いセルへ請求に必要な情報を入力してください。"]
["　※入力するとセルの着色は消えます"]
[]
["②　入力後「請求書発行」ボタンをクリックしてください。"]
[]
["③　印刷プレビューが表示されたら記載内容を確認し、問題がなければ請求書を印刷してください。"]
[]
["④　請求書を発行したら、㊞箇所へ押印のうえ弊社まで提出をお願いします。"]
["　※「提出用」のみ1部提出してください。"]
[]
["※請求現場が複数ある場合は、各現場の請求書とともに、必ず【請求総括表】もご提出ください。"]
[]
[]
["【入力シート記入例】"]

{"sheet":"入力シート","index":1,"n_rows":62,"n_cols":79,"rows_kept":62,"cut":false,"hidden":false,"merged":[[45,67,47,81],[45,49,47,66],[55,45,57,64],[58,46,60,47],[44,3,46,13],[42,49,44,54],[42,55,44,66],[42,67,44,81],[44,14,46,28],[41,14,43,28],[58,50,60,51],[58,14,60,23],[58,24,60,33],[55,14,57,33],[55,34,57,44],[58,3,60,13],[36,67,38,81],[39,67,41,81],[32,14,34,19],[30,55,32,66],[30,67,32,81],[33,49,35,54],[33,55,35,66],[33,67,35,81],[38,14,40,28],[21,67,23,81],[2,48,4,66],[50,69,52,77],[50,78,52,81],[50,82,52,92],[39,49,41,54],[39,55,41,66],[30,49,32,54],[24,49,26,54],[24,55,26,66],[12,49,14,54],[12,55,14,66],[6,55,8,66],[6,67,8,81],[9,49,11,54],[9,55,11,66],[9,67,11,81],[6,49,8,54],[32,3,34,13],[38,3,40,13],[41,3,43,13],[12,67,14,81],[15,49,17,54],[15,55,17,66],[15,67,17,81],[24,67,26,81],[27,49,29,54],[27,55,29,66],[27,67,29,81],[18,49,20,54],[18,55,20,66],[18,67,20,81],[2,1,4,13],[6,3,8,13],[9,3,11,13],[12,3,14,13],[18,14,20,29],[18,3,20,13],[6,24,8,25],[6,26,8,27],[6,28,8,29],[15,14,17,29],[6,14,8,15],[6,16,8,17],[6,18,8,19],[6,20,8,21],[6,22,8,23],[21,49,23,54],[21,55,23,66],[35,3,37,13],[9,14,11,42],[12,14,14,42],[21,14,23,29],[21,3,23,13],[28,1,30,43],[36,49,38,54],[36,55,38,66],[51,1,53,13],[55,3,57,13],[15,3,17,13],[58,44,60,45],[32,29,34,39],[32,20,34,28],[35,14,37,39],[41,29,43,43],[61,3,63,13],[61,14,63,64],[58,34,60,35],[58,36,60,37],[58,38,60,39],[58,40,60,41],[58,42,60,43]]}
[]
[]
[null,"【基本項目】",null,null,null,null,null,null,null,null,null,null,null,null,null,null,null,null,null,null,null,null,null,null,null,null,null,null,null,null,null,null,null,null,null,null,null,null,null,null,null,null,null,null,null,null,null,null,"【出来高請求実績】"]
[]
[]
[]
[null,null,null,"〒",null,null,null,null,null,null,null,null,null,null,null,null,null,null,null,null,"－",null,null,null,null,null,null,null,null,null,null,null,null,null,null,null,null,null,null,null,null,null,null,null,null,null,null,null,null,null,null,null,null,null,null,"日付",null,null,null,null,null,null,null,null,null,null,null,"出来高金額（税抜）"]
[]
[]
[null,null,null,"住所",null,null,null,null,null,null,null,null,null,null,null,null,null,null,null,null,null,null,null,null,null,null,null,null,null,null,null,null,null,null,null,null,null,null,null,null,null,null,null,null,null,null,null,null,null,"第1回"]
[]
[]
[null,null,null,"会社名",null,null,null,null,null,null,null,null,null,null,null,null,null,null,null,null,null,null,null,null,null,null,null,null,null,null,null,null,null,null,null,null,null,null,null,null,null,null,null,null,null,null,null,null,null,"第2回"]
[]
[]
[null,null,null,"TEL",null,null,null,null,null,null,null,null,null,null,null,null,null,null,null,null,null,null,null,null,null,null,null,null,null,null,null,null,null,null,null,null,null,null,null,null,null,null,null,null,null,null,null,null,null,"第3回"]
[]
[]
[null,null,null,"FAX",null,null,null,null,null,null,null,null,null,null,null,null,null,null,null,null,null,null,null,null,null,null,null,null,null,null,null,null,null,null,null,null,null,null,null,null,null,null,null,null,null,null,null,null,null,"第4回"]
[]
[]
[null,null,null,"適格請求書発行\n事業者登録番号",null,null,null,null,null,null,null,null,null,null,null,null,null,null,null,null,null,null,null,null,null,null,null,null,null,null,null,null,null,null,null,null,null,null,null,null,null,null,null,null,null,null,null,null,null,"第5回"]
[]
[]
[null,null,null,null,null,null,null,null,null,null,null,null,null,null,null,null,null,null,null,null,null,null,null,null,null,null,null,null,null,null,null,null,null,null,null,null,null,null,null,null,null,null,null,null,null,null,null,null,null,"第6回"]
[]
[]
[null,null,null,null,null,null,null,null,null,null,null,null,null,null,null,null,null,null,null,null,null,null,null,null,null,null,null,null,null,null,null,null,null,null,null,null,null,null,null,null,null,null,null,null,null,null,null,null,null,"第7回"]
[null,"【契約内容】※金額は税抜きでご記入ください"]
[]
[null,null,null,null,null,null,null,null,null,null,null,null,null,null,null,null,null,null,null,null,null,null,null,null,null,null,null,null,null,null,null,null,null,null,null,null,null,null,null,null,null,null,null,null,null,null,null,null,null,"第8回"]
[]
[null,null,null,"工事番号",null,null,null,null,null,null,null,null,null,null,null,null,null,null,null,null,"弊社担当者"]
[null,null,null,null,null,null,null,null,null,null,null,null,null,null,null,null,null,null,null,null,null,null,null,null,null,null,null,null,null,null,null,null,null,null,null,null,null,null,null,null,null,null,null,null,null,null,null,null,null,"第9回"]
[]
[null,null,null,"現場名"]
[null,null,null,null,null,null,null,null,null,null,null,null,null,null,null,null,null,null,null,null,null,null,null,null,null,null,null,null,null,null,null,null,null,null,null,null,null,null,null,null,null,null,null,null,null,null,null,null,null,"第10回"]
[]
[null,null,null,"当初契約金額"]
[null,null,null,null,null,null,null,null,null,null,null,null,null,null,null,null,null,null,null,null,null,null,null,null,null,null,null,null,null,null,null,null,null,null,null,null,null,null,null,null,null,null,null,null,null,null,null,null,null,"第11回"]
[]
[null,null,null,"増減金額",null,null,null,null,null,null,null,null,null,null,null,null,null,null,null,null,null,null,null,null,null,null,null,null,null,"※契約金額の変更があった場合のみ記入"]
[null,null,null,null,null,null,null,null,null,null,null,null,null,null,null,null,null,null,null,null,null,null,null,null,null,null,null,null,null,null,null,null,null,null,null,null,null,null,null,null,null,null,null,null,null,null,null,null,null,"第12回"]
[]
[null,null,null,"変更後金額",null,null,null,null,null,null,null,null,null,null,{"$f":"IF(O42=\"\",O39,O39+O42)","v":0}]
[null,null,null,null,null,null,null,null,null,null,null,null,null,null,null,null,null,null,null,null,null,null,null,null,null,null,null,null,null,null,null,null,null,null,null,null,null,null,null,null,null,null,null,null,null,null,null,null,null,"合計金額",null,null,null,null,null,null,null,null,null,null,null,null,null,null,null,null,null,{"$f":"SUM(BP10:CD45)","v":0}]
[]
[]
[]
[]
[null,null,null,null,null,null,null,null,null,null,null,null,null,null,null,null,null,null,null,null,null,null,null,null,null,null,null,null,null,null,null,null,null,null,null,null,null,null,null,null,null,null,null,null,null,null,null,null,null,null,null,null,null,null,null,null,null,null,null,null,null,null,null,null,null,null,null,null,null,"右肩日付",null,null,null,null,null,null,null,null,"西暦"]
[null,"【振込先情報】"]
[]
[]
[]
[null,null,null,"銀行名",null,null,null,null,null,null,null,null,null,null,null,null,null,null,null,null,null,null,null,null,null,null,null,null,null,null,null,null,null,null,"支店名"]
[]
[]
[null,null,null,"預金種別",null,null,null,null,null,null,null,null,null,null,null,null,null,null,null,null,null,null,null,null,"口座番号"]
[]
[]
[null,null,null,"口座名義\n（カタカナ）"]

{"sheet":"【注文書契約用】請求書","index":2,"n_rows":186,"n_cols":71,"rows_kept":186,"cut":false,"hidden":false,"merged":[[91,4,93,71],[185,4,187,71],[182,4,184,71],[166,30,174,36],[166,37,174,43],[166,44,174,50],[166,51,167,57],[166,58,174,64],[166,65,174,71],[168,51,174,57],[176,2,178,14],[179,4,181,71],[152,68,154,69],[152,70,154,71],[153,2,155,16],[153,17,155,21],[153,22,155,35],[155,45,158,55],[155,56,158,71],[156,2,158,35],[162,2,164,16],[162,30,165,36],[162,37,165,43],[162,44,163,57],[162,58,163,71],[164,44,165,50],[164,51,165,57],[164,58,165,64],[164,65,165,71],[141,2,149,16],[141,17,143,21],[141,22,143,35],[143,41,158,44],[143,45,145,55],[143,56,145,71],[144,17,146,21],[144,22,146,35],[146,45,148,55],[146,56,148,71],[147,17,149,21],[147,22,149,35],[149,45,151,55],[149,56,151,71],[150,2,152,16],[150,17,152,21],[150,22,152,35],[152,45,154,55],[152,56,154,57],[152,58,154,59],[152,60,154,61],[152,62,154,63],[152,64,154,65],[152,66,154,67],[131,2,134,35],[131,41,139,44],[131,45,133,56],[131,57,133,71],[134,45,136,56],[134,57,136,71],[135,2,137,16],[135,17,137,21],[135,22,137,35],[137,45,139,56],[137,57,139,71],[138,2,140,16],[138,17,140,21],[138,22,140,35],[113,41,115,44],[113,46,115,69],[115,2,126,6],[115,7,118,35],[116,41,118,44],[116,46,118,69],[119,7,122,16],[119,17,122,35],[119,41,121,44],[119,46,121,69],[123,7,126,11],[123,12,126,16],[123,17,126,35],[106,6,107,22],[106,23,107,25],[106,26,107,28],[106,29,107,31],[107,41,109,44],[107,46,109,69],[110,2,112,8],[110,9,112,15],[110,16,112,22],[110,23,112,35],[110,41,112,44],[110,46,112,65],[110,67,112,69],[95,11,97,48],[96,51,97,54],[96,55,97,58],[96,59,97,60],[96,61,97,63],[96,64,97,65],[96,66,97,68],[96,69,97,70],[98,34,100,36],[100,41,102,49],[100,50,102,52],[100,53,102,55],[100,56,102,58],[102,2,104,27],[102,28,104,31],[104,41,106,44],[104,46,106,47],[104,48,106,49],[104,50,106,51],[104,52,106,53],[104,54,106,55],[104,56,106,57],[104,58,106,59],[104,60,106,61],[41,2,43,16],[41,17,43,21],[41,22,43,35],[44,2,46,16],[44,17,46,21],[44,22,46,35],[47,17,49,21],[37,41,45,44],[37,45,39,56],[40,45,42,56],[43,45,45,56],[49,41,64,44],[49,56,51,71],[52,56,54,71],[55,56,57,71],[61,56,64,71],[58,70,60,71],[59,2,61,16],[59,17,61,21],[59,22,61,35],[62,2,64,35],[58,64,60,65],[58,66,60,67],[58,68,60,69],[16,9,18,15],[16,16,18,22],[16,23,18,35],[29,7,32,11],[29,12,32,16],[25,7,28,16],[6,41,8,49],[4,34,6,36],[21,7,24,35],[25,17,28,35],[29,17,32,35],[8,2,10,27],[8,28,10,31],[16,2,18,8],[21,2,32,6],[13,46,15,69],[16,46,18,65],[16,67,18,69],[19,46,21,69],[22,41,24,44],[13,41,15,44],[16,41,18,44],[12,29,13,31],[25,46,27,69],[25,41,27,44],[2,64,3,65],[2,66,3,68],[2,69,3,70],[10,46,12,47],[10,48,12,49],[10,50,12,51],[10,52,12,53],[10,54,12,55],[10,56,12,57],[10,58,12,59],[10,60,12,61],[2,51,3,54],[2,55,3,58],[2,59,3,60],[2,61,3,63],[6,50,8,52],[6,53,8,55],[6,56,8,58],[10,41,12,44],[1,11,3,48],[12,6,13,22],[12,23,13,25],[12,26,13,28],[68,2,70,16],[68,30,71,36],[68,37,71,43],[68,44,69,57],[70,44,71,50],[70,51,71,57],[22,46,24,69],[19,41,21,44],[68,58,69,71],[70,65,71,71],[70,58,71,64],[37,57,39,71],[40,57,42,71],[43,57,45,71],[37,2,40,35],[52,45,54,55],[49,45,51,55],[55,45,57,55],[58,45,60,55],[61,45,64,55],[58,56,60,57],[58,58,60,59],[58,60,60,61],[58,62,60,63],[88,4,90,71],[85,4,87,71],[82,2,84,14],[72,51,73,57],[72,30,80,36],[72,37,80,43],[72,44,80,50],[74,51,80,57],[72,58,80,64],[72,65,80,71],[47,22,49,35],[50,17,52,21],[50,22,52,35],[53,17,55,21],[53,22,55,35],[56,17,58,21],[56,22,58,35],[47,2,55,16],[56,2,58,16]]}
[]
[null,null,null,null,null,null,null,null,null,null,null,"請求書（注文書契約用）"]
[null,null,null,null,null,null,null,null,null,null,null,null,null,null,null,null,null,null,null,null,null,null,null,null,null,null,null,null,null,null,null,null,null,null,null,null,null,null,null,null,null,null,null,null,null,null,null,null,null,null,null,"西暦",null,null,null,{"$f":"+YEAR(入力シート!CE51)","v":1900},null,null,null,"年",null,{"$f":"+MONTH(入力シート!CE51)","v":1},null,null,"月",null,{"$f":"+DAY(入力シート!CE51)","v":0},null,null,"日"]
[]
[]
[]
[null,null,null,null,null,null,null,null,null,null,null,null,null,null,null,null,null,null,null,null,null,null,null,null,null,null,null,null,null,null,null,null,null,null,null,null,null,null,null,null,null,"取引先コード"]
[]
[null,null,"株式会社　湘南推進工業",null,null,null,null,null,null,null,null,null,null,null,null,null,null,null,null,null,null,null,null,null,null,null,null,null,"御中"]
[]
[null,null,null,null,null,null,null,null,null,null,null,null,null,null,null,null,null,null,null,null,null,null,null,null,null,null,null,null,null,null,null,null,null,null,null,null,null,null,null,null,null,"〒",null,null,null,null,{"$f":"+IF(入力シート!O7=\"\",\"\",+入力シート!O7)","v":""},null,{"$f":"+IF(入力シート!Q7=\"\",\"\",+入力シート!Q7)","v":""},null,{"$f":"+IF(入力シート!S7=\"\",\"\",+入力シート!S7)","v":""},null,"－",null,{"$f":"+IF(入力シート!W7=\"\",\"\",+入力シート!W7)","v":""},null,{"$f":"+IF(入力シート!Y7=\"\",\"\",+入力シート!Y7)","v":""},null,{"$f":"+IF(入力シート!AA7=\"\",\"\",+入力シート!AA7)","v":""},null,{"$f":"+IF(入力シート!AC7=\"\",\"\",+入力シート!AC7)","v":""}]
[]
[null,null,null,null,null,null,"下記の通り請求致します"]
[null,null,null,null,null,null,null,null,null,null,null,null,null,null,null,null,null,null,null,null,null,null,null,null,null,null,null,null,null,null,null,null,null,null,null,null,null,null,null,null,null,"住所",null,null,null,null,{"$f":"+IF(入力シート!O10=\"\",\"\",+入力シート!O10)","v":""}]
[]
[]
[null,null,"工事番号",null,null,null,null,null,null,{"$f":"+IF(入力シート!O33=\"\",\"\",+入力シート!O33)","v":""},null,null,null,null,null,null,"現場名",null,null,null,null,null,null,{"$f":"+IF(入力シート!O36=\"\",\"\",+入力シート!O36)","v":""},null,null,null,null,null,null,null,null,null,null,null,null,null,null,null,null,null,"会社名",null,null,null,null,{"$f":"+IF(入力シート!O13=\"\",\"\",+入力シート!O13)","v":""},null,null,null,null,null,null,null,null,null,null,null,null,null,null,null,null,null,null,null,null,"㊞"]
[]
[]
[null,null,null,null,null,null,null,null,null,null,null,null,null,null,null,null,null,null,null,null,null,null,null,null,null,null,null,null,null,null,null,null,null,null,null,null,null,null,null,null,null,"電話",null,null,null,null,{"$f":"+IF(入力シート!O16=\"\",\"\",+入力シート!O16)","v":""}]
[]
[null,null,"今回請求金額",null,null,null,null,{"$f":"+IF(R26+R30=0,\"\",R26+R30)","v":""}]
[null,null,null,null,null,null,null,null,null,null,null,null,null,null,null,null,null,null,null,null,null,null,null,null,null,null,null,null,null,null,null,null,null,null,null,null,null,null,null,null,null,"FAX",null,null,null,null,{"$f":"+IF(入力シート!O19=\"\",\"\",+入力シート!O19)","v":""}]
[]
[]
[null,null,null,null,null,null,null,"本体価格（税抜）",null,null,null,null,null,null,null,null,null,{"$f":"W48","v":0},null,null,null,null,null,null,null,null,null,null,null,null,null,null,null,null,null,null,null,null,null,null,null,"登録\n番号",null,null,null,null,{"$f":"+IF(入力シート!O22=\"\",\"\",+入力シート!O22)","v":""}]
[]
[]
[]
[null,null,null,null,null,null,null,"消費税",null,null,null,null,0.1,null,null,null,null,{"$f":"W51","v":0}]
[]
[]
[]
[]
[]
[]
[]
[null,null,"出来高関連情報",null,null,null,null,null,null,null,null,null,null,null,null,null,null,null,null,null,null,null,null,null,null,null,null,null,null,null,null,null,null,null,null,null,null,null,null,null,null,"契約内容",null,null,null,"当初契約金額",null,null,null,null,null,null,null,null,null,null,null,{"$f":"+IF(入力シート!O39=\"\",\"\",入力シート!O39)","v":""}]
[]
[]
[null,null,null,null,null,null,null,null,null,null,null,null,null,null,null,null,null,null,null,null,null,null,null,null,null,null,null,null,null,null,null,null,null,null,null,null,null,null,null,null,null,null,null,null,null,"増減金額",null,null,null,null,null,null,null,null,null,null,null,{"$f":"IF(入力シート!O42=\"\",\"\",入力シート!O42)","v":""}]
[null,null,"前回迄出来高金額",null,null,null,null,null,null,null,null,null,null,null,null,null,null,"税抜",null,null,null,null,{"$f":"+SUMIF(入力シート!BD10:BD45,\"<\"&入力シート!CE51,入力シート!BP10:CD45)","v":0}]
[]
[null,null,null,null,null,null,null,null,null,null,null,null,null,null,null,null,null,null,null,null,null,null,null,null,null,null,null,null,null,null,null,null,null,null,null,null,null,null,null,null,null,null,null,null,null,"変更後金額",null,null,null,null,null,null,null,null,null,null,null,{"$f":"SUM(BF38:BT43)","v":0}]
[null,null,"当月出来高金額",null,null,null,null,null,null,null,null,null,null,null,null,null,null,"税抜",null,null,null,null,{"$f":"+SUMIF(入力シート!BD10:BD45,\"=\"&入力シート!CE51,入力シート!BP10:CD45)","v":0}]
[]
[]
[null,null,"当月請求金額",null,null,null,null,null,null,null,null,null,null,null,null,null,null,"税抜",null,null,null,null,{"$f":"W45","v":0}]
[]
[null,null,null,null,null,null,null,null,null,null,null,null,null,null,null,null,null,null,null,null,null,null,null,null,null,null,null,null,null,null,null,null,null,null,null,null,null,null,null,null,null,"振込先情報",null,null,null,"銀行名",null,null,null,null,null,null,null,null,null,null,{"$f":"IF(入力シート!O56=\"\",\"\",入力シート!O56)","v":""}]
[null,null,null,null,null,null,null,null,null,null,null,null,null,null,null,null,null,"消 費 税\n10％",null,null,null,null,{"$f":"ROUNDDOWN(W48*0.1,0)","v":0}]
[]
[null,null,null,null,null,null,null,null,null,null,null,null,null,null,null,null,null,null,null,null,null,null,null,null,null,null,null,null,null,null,null,null,null,null,null,null,null,null,null,null,null,null,null,null,null,"支店名",null,null,null,null,null,null,null,null,null,null,{"$f":"IF(入力シート!AT56=\"\",\"\",入力シート!AT56)","v":""}]
[null,null,null,null,null,null,null,null,null,null,null,null,null,null,null,null,null,"税込",null,null,null,null,{"$f":"W48+W51","v":0}]
[]
[null,null,null,null,null,null,null,null,null,null,null,null,null,null,null,null,null,null,null,null,null,null,null,null,null,null,null,null,null,null,null,null,null,null,null,null,null,null,null,null,null,null,null,null,null,"預金種別",null,null,null,null,null,null,null,null,null,null,{"$f":"IF(入力シート!O59=\"\",\"\",入力シート!O59)","v":""}]
[null,null,"累計領収金額（※）",null,null,null,null,null,null,null,null,null,null,null,null,null,null,"税抜",null,null,null,null,{"$f":"入力シート!BP46","v":0}]
[]
[null,null,null,null,null,null,null,null,null,null,null,null,null,null,null,null,null,null,null,null,null,null,null,null,null,null,null,null,null,null,null,null,null,null,null,null,null,null,null,null,null,null,null,null,null,"口座番号",null,null,null,null,null,null,null,null,null,null,null,null,{"$f":"IF(入力シート!AI59=\"\",\"\",入力シート!AI59)","v":""},null,{"$f":"IF(入力シート!AK59=\"\",\"\",入力シート!AK59)","v":""},null,{"$f":"IF(入力シート!AM59=\"\",\"\",入力シート!AM59)","v":""},null,{"$f":"IF(入力シート!AO59=\"\",\"\",入力シート!AO59)","v":""},null,{"$f":"IF(入力シート!AQ59=\"\",\"\",入力シート!AQ59)","v":""},null,{"$f":"IF(入力シート!AS59=\"\",\"\",入力シート!AS59)","v":""},null,{"$f":"IF(入力シート!AU59=\"\",\"\",入力シート!AU59)","v":""}]
[null,null,"契約金額残高",null,null,null,null,null,null,null,null,null,null,null,null,null,null,"税抜",null,null,null,null,{"$f":"入力シート!O45-(【注文書契約用】請求書!W42+【注文書契約用】請求書!W48)","v":0}]
[]
[null,null,null,null,null,null,null,null,null,null,null,null,null,null,null,null,null,null,null,null,null,null,null,null,null,null,null,null,null,null,null,null,null,null,null,null,null,null,null,null,null,null,null,null,null,"口座名義\n（カタカナ）",null,null,null,null,null,null,null,null,null,null,{"$f":"IF(入力シート!O62=\"\",\"\",入力シート!O62)","v":""}]
[null,null,"※　「累計領収金額」には当月請求分を含みます。"]
[]
[]
[]
[]
[]
[null,null,"湘南推進工業使用欄",null,null,null,null,null,null,null,null,null,null,null,null,null,null,null,null,null,null,null,null,null,null,null,null,null,null,null,"社長",null,null,null,null,null,null,"役員",null,null,null,null,null,null,"工事部",null,null,null,null,null,null,null,null,null,null,null,null,null,"総務部"]
[]
[null,null,null,null,null,null,null,null,null,null,null,null,null,null,null,null,null,null,null,null,null,null,null,null,null,null,null,null,null,null,null,null,null,null,null,null,null,null,null,null,null,null,null,null,"部長",null,null,null,null,null,null,"担当者",null,null,null,null,null,null,"部長",null,null,null,null,null,null,"経理"]
[]
[null,null,null,null,null,null,null,null,null,null,null,null,null,null,null,null,null,null,null,null,null,null,null,null,null,null,null,null,null,null,null,null,null,null,null,null,null,null,null,null,null,null,null,null,null,null,null,null,null,null,null,{"$f":"+IF(入力シート!AD33=\"\",\"\",+入力シート!AD33)","v":""}]
[]
[]
[]
[]
[]
[]
[]
[]
[]
[null,null,"《記入上のお願い》"]
[]
[]
[null,null,null,null,"☆　請求書は、毎月末日〆、翌月10日必着です。必ず押印の上、1部提出でお願いいたします。"]
[]
[]
[null,null,null,null,"☆　請求書は、必ず一現場につき一枚で提出してください（複数現場の場合）。"]
[]
[]
[null,null,null,null,"☆　請求が複数現場ある場合は、各現場の請求書とともに、必ず請求総括表もご提出ください。"]
[]
[]
[]
[null,null,null,null,null,null,null,null,null,null,null,"請求書（注文書契約用）"]
[null,null,null,null,null,null,null,null,null,null,null,null,null,null,null,null,null,null,null,null,null,null,null,null,null,null,null,null,null,null,null,null,null,null,null,null,null,null,null,null,null,null,null,null,null,null,null,null,null,null,null,"西暦",null,null,null,{"$f":"BD3","v":1900},null,null,null,"年",null,{"$f":"BJ3","v":1},null,null,"月",null,{"$f":"BO3","v":0},null,null,"日"]
[]
[]
[]
[null,null,null,null,null,null,null,null,null,null,null,null,null,null,null,null,null,null,null,null,null,null,null,null,null,null,null,null,null,null,null,null,null,null,null,null,null,null,null,null,null,"取引先コード"]
[]
[null,null,"株式会社　湘南推進工業",null,null,null,null,null,null,null,null,null,null,null,null,null,null,null,null,null,null,null,null,null,null,null,null,null,"御中"]
[]
[null,null,null,null,null,null,null,null,null,null,null,null,null,null,null,null,null,null,null,null,null,null,null,null,null,null,null,null,null,null,null,null,null,null,null,null,null,null,null,null,null,"〒",null,null,null,null,{"$f":"AU11","v":""},null,{"$f":"AU11","v":""},null,{"$f":"AW11","v":""},null,"－",null,{"$f":"BC11","v":""},null,{"$f":"BE11","v":""},null,{"$f":"BG11","v":""},null,{"$f":"BI11","v":""}]
[]
[null,null,null,null,null,null,"下記の通り請求致します"]
[null,null,null,null,null,null,null,null,null,null,null,null,null,null,null,null,null,null,null,null,null,null,null,null,null,null,null,null,null,null,null,null,null,null,null,null,null,null,null,null,null,"住所",null,null,null,null,{"$f":"AU14","v":""}]
[]
[]
[null,null,"工事番号",null,null,null,null,null,null,{"$f":"J17","v":""},null,null,null,null,null,null,"現場名",null,null,null,null,null,null,{"$f":"X17","v":""},null,null,null,null,null,null,null,null,null,null,null,null,null,null,null,null,null,"会社名",null,null,null,null,{"$f":"AU17","v":""},null,null,null,null,null,null,null,null,null,null,null,null,null,null,null,null,null,null,null,null,"㊞"]
[]
[]
[null,null,null,null,null,null,null,null,null,null,null,null,null,null,null,null,null,null,null,null,null,null,null,null,null,null,null,null,null,null,null,null,null,null,null,null,null,null,null,null,null,"電話",null,null,null,null,{"$f":"AU20","v":""}]
[]
[null,null,"今回請求金額",null,null,null,null,{"$f":"H22","v":""}]
[null,null,null,null,null,null,null,null,null,null,null,null,null,null,null,null,null,null,null,null,null,null,null,null,null,null,null,null,null,null,null,null,null,null,null,null,null,null,null,null,null,"FAX",null,null,null,null,{"$f":"AU23","v":""}]
[]
[]
[null,null,null,null,null,null,null,"本体価格（税抜）",null,null,null,null,null,null,null,null,null,{"$f":"R26","v":0},null,null,null,null,null,null,null,null,null,null,null,null,null,null,null,null,null,null,null,null,null,null,null,"登録\n番号",null,null,null,null,{"$f":"AU26","v":""}]
[]
[]
[]
[null,null,null,null,null,null,null,"消費税",null,null,null,null,0.1,null,null,null,null,{"$f":"R30","v":0}]
[]
[]
[]
[]
[]
[]
[]
[null,null,"出来高関連情報",null,null,null,null,null,null,null,null,null,null,null,null,null,null,null,null,null,null,null,null,null,null,null,null,null,null,null,null,null,null,null,null,null,null,null,null,null,null,"契約内容",null,null,null,"当初契約金額",null,null,null,null,null,null,null,null,null,null,null,{"$f":"BF38","v":""}]
[]
[]
[null,null,null,null,null,null,null,null,null,null,null,null,null,null,null,null,null,null,null,null,null,null,null,null,null,null,null,null,null,null,null,null,null,null,null,null,null,null,null,null,null,null,null,null,null,"増減金額",null,null,null,null,null,null,null,null,null,null,null,{"$f":"BF41","v":""}]
[null,null,"前回迄出来高金額",null,null,null,null,null,null,null,null,null,null,null,null,null,null,"税抜",null,null,null,null,{"$f":"W42","v":0}]
[]
[null,null,null,null,null,null,null,null,null,null,null,null,null,null,null,null,null,null,null,null,null,null,null,null,null,null,null,null,null,null,null,null,null,null,null,null,null,null,null,null,null,null,null,null,null,"変更後金額",null,null,null,null,null,null,null,null,null,null,null,{"$f":"BF44","v":0}]
[null,null,"当月出来高金額",null,null,null,null,null,null,null,null,null,null,null,null,null,null,"税抜",null,null,null,null,{"$f":"W45","v":0}]
[]
[]
[null,null,"当月請求金額",null,null,null,null,null,null,null,null,null,null,null,null,null,null,"税抜",null,null,null,null,{"$f":"W48","v":0}]
[]
[null,null,null,null,null,null,null,null,null,null,null,null,null,null,null,null,null,null,null,null,null,null,null,null,null,null,null,null,null,null,null,null,null,null,null,null,null,null,null,null,null,"振込先情報",null,null,null,"銀行名",null,null,null,null,null,null,null,null,null,null,{"$f":"BE50","v":""}]
[null,null,null,null,null,null,null,null,null,null,null,null,null,null,null,null,null,"消 費 税\n10％",null,null,null,null,{"$f":"W51","v":0}]
[]
[null,null,null,null,null,null,null,null,null,null,null,null,null,null,null,null,null,null,null,null,null,null,null,null,null,null,null,null,null,null,null,null,null,null,null,null,null,null,null,null,null,null,null,null,null,"支店名",null,null,null,null,null,null,null,null,null,null,{"$f":"BE53","v":""}]
[null,null,null,null,null,null,null,null,null,null,null,null,null,null,null,null,null,"税込",null,null,null,null,{"$f":"W54","v":0}]
[]
[null,null,null,null,null,null,null,null,null,null,null,null,null,null,null,null,null,null,null,null,null,null,null,null,null,null,null,null,null,null,null,null,null,null,null,null,null,null,null,null,null,null,null,null,null,"預金種別",null,null,null,null,null,null,null,null,null,null,{"$f":"BE56","v":""}]
[null,null,"累計領収金額（※）",null,null,null,null,null,null,null,null,null,null,null,null,null,null,"税抜",null,null,null,null,{"$f":"W57","v":0}]
[]
[null,null,null,null,null,null,null,null,null,null,null,null,null,null,null,null,null,null,null,null,null,null,null,null,null,null,null,null,null,null,null,null,null,null,null,null,null,null,null,null,null,null,null,null,null,"口座番号",null,null,null,null,null,null,null,null,null,null,null,null,{"$f":"BG59","v":""},null,{"$f":"BI59","v":""},null,{"$f":"BK59","v":""},null,{"$f":"BM59","v":""},null,{"$f":"BO59","v":""},null,{"$f":"BQ59","v":""},null,{"$f":"BS59","v":""}]
[null,null,"契約金額残高",null,null,null,null,null,null,null,null,null,null,null,null,null,null,"税抜",null,null,null,null,{"$f":"W60","v":0}]
[]
[null,null,null,null,null,null,null,null,null,null,null,null,null,null,null,null,null,null,null,null,null,null,null,null,null,null,null,null,null,null,null,null,null,null,null,null,null,null,null,null,null,null,null,null,null,"口座名義\n（カタカナ）",null,null,null,null,null,null,null,null,null,null,{"$f":"BE62","v":""}]
[null,null,"※　「累計領収金額」には当月請求分を含みます。"]
[]
[]
[]
[]
[]
[null,null,"湘南推進工業使用欄",null,null,null,null,null,null,null,null,null,null,null,null,null,null,null,null,null,null,null,null,null,null,null,null,null,null,null,"社長",null,null,null,null,null,null,"役員",null,null,null,null,null,null,"工事部",null,null,null,null,null,null,null,null,null,null,null,null,null,"総務部"]
[]
[null,null,null,null,null,null,null,null,null,null,null,null,null,null,null,null,null,null,null,null,null,null,null,null,null,null,null,null,null,null,null,null,null,null,null,null,null,null,null,null,null,null,null,null,"部長",null,null,null,null,null,null,"担当者",null,null,null,null,null,null,"部長",null,null,null,null,null,null,"経理"]
[]
[null,null,null,null,null,null,null,null,null,null,null,null,null,null,null,null,null,null,null,null,null,null,null,null,null,null,null,null,null,null,null,null,null,null,null,null,null,null,null,null,null,null,null,null,null,null,null,null,null,null,null,{"$f":"AZ73","v":""}]
[]
[]
[]
[]
[]
[]
[]
[]
[]
[null,null,"《記入上のお願い》"]
[]
[]
[null,null,null,null,"☆　請求書は、毎月末日〆、翌月10日必着です。必ず押印の上、1部提出でお願いいたします。"]
[]
[]
[null,null,null,null,"☆　請求書は、必ず一現場につき一枚で提出してください（複数現場の場合）。"]
[]
[]
[null,null,null,null,"☆　請求が複数現場ある場合は、各現場の請求書とともに、必ず請求総括表もご提出ください。"]

{"sheet":"【請求総括表】","index":3,"n_rows":186,"n_cols":70,"rows_kept":186,"cut":false,"hidden":false,"merged":[[152,14,154,24],[152,25,154,32],[152,33,154,43],[82,2,84,14],[85,4,87,71],[88,4,90,71],[95,11,97,48],[96,51,97,54],[96,55,97,58],[96,59,97,60],[96,61,97,63],[185,4,187,71],[13,46,15,69],[16,41,18,44],[16,46,18,65],[16,67,18,69],[10,52,12,53],[10,54,12,55],[10,50,12,51],[29,7,32,11],[29,12,32,16],[29,17,32,35],[35,10,37,27],[19,41,21,44],[19,46,21,69],[21,2,32,6],[21,7,24,35],[58,6,60,13],[58,14,60,24],[58,25,60,32],[58,33,60,43],[61,6,63,13],[61,14,63,21],[61,22,63,29],[152,6,154,13],[35,2,37,9],[35,54,37,69],[35,43,37,53],[35,28,37,42],[2,66,3,68],[2,69,3,70],[4,34,6,36],[6,41,8,49],[6,50,8,52],[6,53,8,55],[6,56,8,58],[1,11,3,48],[2,51,3,54],[2,55,3,58],[2,59,3,60],[2,61,3,63],[2,64,3,65],[10,56,12,57],[10,58,12,59],[10,60,12,61],[12,6,13,22],[8,28,10,31],[10,41,12,44],[10,46,12,47],[8,2,10,27],[64,6,66,13],[64,14,66,43],[69,2,71,16],[69,30,72,36],[69,37,72,43],[69,44,70,57],[61,36,63,37],[61,38,63,39],[61,40,63,41],[61,42,63,43],[61,30,63,31],[61,32,63,33],[61,34,63,35],[58,2,66,5],[71,44,72,50],[71,51,72,57],[38,54,40,69],[38,10,40,27],[38,28,40,42],[22,41,24,44],[22,46,24,69],[25,7,28,16],[25,17,28,35],[96,66,97,68],[96,69,97,70],[100,50,102,52],[100,53,102,55],[100,56,102,58],[73,65,79,71],[73,51,79,57],[98,34,100,36],[12,23,13,25],[12,26,13,28],[12,29,13,31],[13,41,15,44],[25,41,27,44],[25,46,27,69],[10,48,12,49],[69,58,70,71],[71,58,72,64],[71,65,72,71],[73,30,79,36],[73,37,79,43],[182,4,184,71],[163,58,164,71],[165,44,166,50],[165,51,166,57],[165,58,166,64],[165,65,166,71],[167,30,173,36],[167,37,173,43],[167,44,173,50],[167,58,173,64],[163,2,165,16],[163,30,166,36],[163,37,166,43],[163,44,164,57],[176,2,178,14],[179,4,181,71],[167,51,173,57],[167,65,173,71],[158,6,160,13],[158,14,160,43],[155,36,157,37],[155,38,157,39],[155,40,157,41],[155,42,157,43],[155,30,157,31],[155,32,157,33],[155,34,157,35],[155,22,157,29],[44,28,46,42],[47,28,49,42],[129,2,131,9],[129,10,131,27],[129,28,131,42],[129,43,131,53],[129,54,131,69],[123,7,126,11],[123,12,126,16],[123,17,126,35],[110,41,112,44],[110,46,112,65],[110,67,112,69],[104,52,106,53],[104,54,106,55],[104,56,106,57],[104,58,106,59],[104,60,106,61],[104,48,106,49],[104,50,106,51],[73,44,79,50],[73,58,79,64],[91,4,93,71],[96,64,97,65],[106,6,107,22],[106,23,107,25],[106,26,107,28],[106,29,107,31],[107,41,109,44],[102,2,104,27],[102,28,104,31],[104,41,106,44],[104,46,106,47],[100,41,102,49],[107,46,109,69],[38,43,40,53],[41,43,43,53],[44,43,46,53],[50,28,52,42],[53,54,55,69],[53,2,55,27],[38,2,40,9],[41,2,43,9],[44,2,46,9],[47,2,49,9],[47,43,49,53],[50,43,52,53],[53,43,55,53],[50,2,52,9],[41,54,43,69],[44,54,46,69],[47,54,49,69],[50,54,52,69],[53,28,55,42],[41,10,43,27],[44,10,46,27],[47,10,49,27],[50,10,52,27],[41,28,43,42],[138,28,140,42],[138,43,140,53],[113,41,115,44],[113,46,115,69],[115,2,126,6],[115,7,118,35],[116,41,118,44],[116,46,118,69],[119,7,122,16],[119,17,122,35],[119,41,121,44],[119,46,121,69],[132,2,134,9],[132,10,134,27],[132,28,134,42],[132,43,134,53],[132,54,134,69],[135,2,137,9],[152,2,160,5],[155,6,157,13],[155,14,157,21],[135,10,137,27],[135,28,137,42],[135,43,137,53],[135,54,137,69],[144,54,146,69],[147,2,149,27],[147,28,149,42],[147,43,149,53],[147,54,149,69],[138,54,140,69],[141,2,143,9],[141,10,143,27],[141,28,143,42],[141,43,143,53],[141,54,143,69],[144,2,146,9],[144,10,146,27],[144,28,146,42],[144,43,146,53],[138,2,140,9],[138,10,140,27]]}
[]
[null,null,null,null,null,null,null,null,null,null,null,"請求総括表"]
[null,null,null,null,null,null,null,null,null,null,null,null,null,null,null,null,null,null,null,null,null,null,null,null,null,null,null,null,null,null,null,null,null,null,null,null,null,null,null,null,null,null,null,null,null,null,null,null,null,null,null,"西暦",null,null,null,{"$f":"+YEAR(入力シート!CE51)","v":1900},null,null,null,"年",null,{"$f":"+MONTH(入力シート!CE51)","v":1},null,null,"月",null,{"$f":"+DAY(入力シート!CE51)","v":0},null,null,"日"]
[]
[]
[]
[null,null,null,null,null,null,null,null,null,null,null,null,null,null,null,null,null,null,null,null,null,null,null,null,null,null,null,null,null,null,null,null,null,null,null,null,null,null,null,null,null,"取引先コード"]
[]
[null,null,"株式会社　湘南推進工業",null,null,null,null,null,null,null,null,null,null,null,null,null,null,null,null,null,null,null,null,null,null,null,null,null,"御中"]
[]
[null,null,null,null,null,null,null,null,null,null,null,null,null,null,null,null,null,null,null,null,null,null,null,null,null,null,null,null,null,null,null,null,null,null,null,null,null,null,null,null,null,"〒",null,null,null,null,{"$f":"+IF(入力シート!O7=\"\",\"\",+入力シート!O7)","v":""},null,{"$f":"+IF(入力シート!Q7=\"\",\"\",+入力シート!Q7)","v":""},null,{"$f":"+IF(入力シート!S7=\"\",\"\",+入力シート!S7)","v":""},null,"－",null,{"$f":"+IF(入力シート!W7=\"\",\"\",+入力シート!W7)","v":""},null,{"$f":"+IF(入力シート!Y7=\"\",\"\",+入力シート!Y7)","v":""},null,{"$f":"+IF(入力シート!AA7=\"\",\"\",+入力シート!AA7)","v":""},null,{"$f":"+IF(入力シート!AC7=\"\",\"\",+入力シート!AC7)","v":""}]
[]
[null,null,null,null,null,null,"下記の通り請求致します"]
[null,null,null,null,null,null,null,null,null,null,null,null,null,null,null,null,null,null,null,null,null,null,null,null,null,null,null,null,null,null,null,null,null,null,null,null,null,null,null,null,null,"住所",null,null,null,null,{"$f":"+IF(入力シート!O10=\"\",\"\",+入力シート!O10)","v":""}]
[]
[]
[null,null,null,null,null,null,null,null,null,null,null,null,null,null,null,null,null,null,null,null,null,null,null,null,null,null,null,null,null,null,null,null,null,null,null,null,null,null,null,null,null,"会社名",null,null,null,null,{"$f":"+IF(入力シート!O13=\"\",\"\",+入力シート!O13)","v":""},null,null,null,null,null,null,null,null,null,null,null,null,null,null,null,null,null,null,null,null,"㊞"]
[]
[]
[null,null,null,null,null,null,null,null,null,null,null,null,null,null,null,null,null,null,null,null,null,null,null,null,null,null,null,null,null,null,null,null,null,null,null,null,null,null,null,null,null,"電話",null,null,null,null,{"$f":"+IF(入力シート!O16=\"\",\"\",+入力シート!O16)","v":""}]
[]
[null,null,"今回請求金額",null,null,null,null,{"$f":"+IF(R26+R30=0,\"\",R26+R30)","v":""}]
[null,null,null,null,null,null,null,null,null,null,null,null,null,null,null,null,null,null,null,null,null,null,null,null,null,null,null,null,null,null,null,null,null,null,null,null,null,null,null,null,null,"FAX",null,null,null,null,{"$f":"+IF(入力シート!O19=\"\",\"\",+入力シート!O19)","v":""}]
[]
[]
[null,null,null,null,null,null,null,"本体価格（税抜）",null,null,null,null,null,null,null,null,null,{"$f":"AC54","v":0},null,null,null,null,null,null,null,null,null,null,null,null,null,null,null,null,null,null,null,null,null,null,null,"登録\n番号",null,null,null,null,{"$f":"+IF(入力シート!O22=\"\",\"\",+入力シート!O22)","v":""}]
[]
[]
[]
[null,null,null,null,null,null,null,"消費税",null,null,null,null,0.1,null,null,null,null,{"$f":"AR54","v":0}]
[]
[]
[]
[]
[]
[null,null,"工事番号",null,null,null,null,null,null,null,"現場名",null,null,null,null,null,null,null,null,null,null,null,null,null,null,null,null,null,"本体価格（税抜）",null,null,null,null,null,null,null,null,null,null,null,null,null,null,"消費税（10％）",null,null,null,null,null,null,null,null,null,null,"備考"]
[]
[]
[]
[]
[]
[]
[]
[]
[]
[]
[]
[]
[]
[]
[]
[]
[]
[null,null,"合計"]
[]
[]
[]
[]
[null,null,"振込先情報",null,null,null,"銀行名",null,null,null,null,null,null,null,{"$f":"IF(入力シート!O56=\"\",\"\",入力シート!O56)","v":""},null,null,null,null,null,null,null,null,null,null,"支店名",null,null,null,null,null,null,null,{"$f":"IF(入力シート!AT56=\"\",\"\",入力シート!AT56)","v":""}]
[]
[]
[null,null,null,null,null,null,"預金種別",null,null,null,null,null,null,null,{"$f":"IF(入力シート!O59=\"\",\"\",入力シート!O59)","v":""},null,null,null,null,null,null,null,"口座番号",null,null,null,null,null,null,null,{"$f":"IF(入力シート!AI59=\"\",\"\",入力シート!AI59)","v":""},null,{"$f":"IF(入力シート!AK59=\"\",\"\",入力シート!AK59)","v":""},null,{"$f":"IF(入力シート!AM59=\"\",\"\",入力シート!AM59)","v":""},null,{"$f":"IF(入力シート!AO59=\"\",\"\",入力シート!AO59)","v":""},null,{"$f":"IF(入力シート!AQ59=\"\",\"\",入力シート!AQ59)","v":""},null,{"$f":"IF(入力シート!AS59=\"\",\"\",入力シート!AS59)","v":""},null,{"$f":"IF(入力シート!AU59=\"\",\"\",入力シート!AU59)","v":""}]
[]
[]
[null,null,null,null,null,null,"口座名義\n（カタカナ）",null,null,null,null,null,null,null,{"$f":"IF(入力シート!O62=\"\",\"\",入力シート!O62)","v":""}]
[]
[]
[]
[]
[null,null,"湘南推進工業使用欄",null,null,null,null,null,null,null,null,null,null,null,null,null,null,null,null,null,null,null,null,null,null,null,null,null,null,null,"社長",null,null,null,null,null,null,"役員",null,null,null,null,null,null,"工事部",null,null,null,null,null,null,null,null,null,null,null,null,null,"総務部"]
[]
[null,null,null,null,null,null,null,null,null,null,null,null,null,null,null,null,null,null,null,null,null,null,null,null,null,null,null,null,null,null,null,null,null,null,null,null,null,null,null,null,null,null,null,null,"部長",null,null,null,null,null,null,"担当者",null,null,null,null,null,null,"部長",null,null,null,null,null,null,"経理"]
[]
[]
[]
[]
[]
[]
[]
[]
[]
[]
[null,null,"《記入上のお願い》"]
[]
[]
[null,null,null,null,"☆　請求書は、毎月末日〆、翌月10日必着です。必ず押印の上、1部提出でお願いいたします。"]
[]
[]
[null,null,null,null,"☆　請求書は、必ず一現場につき一枚でご提出ください（複数現場の場合）。"]
[]
[]
[null,null,null,null,"☆　請求現場が複数ある場合は、各現場の請求書とともに、必ず総括内訳書もご提出ください。"]
[]
[]
[]
[null,null,null,null,null,null,null,null,null,null,null,"請求総括表"]
[null,null,null,null,null,null,null,null,null,null,null,null,null,null,null,null,null,null,null,null,null,null,null,null,null,null,null,null,null,null,null,null,null,null,null,null,null,null,null,null,null,null,null,null,null,null,null,null,null,null,null,"西暦",null,null,null,{"$f":"+YEAR(入力シート!CE145)","v":1900},null,null,null,"年",null,{"$f":"+MONTH(入力シート!CE145)","v":1},null,null,"月",null,{"$f":"+DAY(入力シート!CE145)","v":0},null,null,"日"]
[]
[]
[]
[null,null,null,null,null,null,null,null,null,null,null,null,null,null,null,null,null,null,null,null,null,null,null,null,null,null,null,null,null,null,null,null,null,null,null,null,null,null,null,null,null,"取引先コード"]
[]
[null,null,"株式会社　湘南推進工業",null,null,null,null,null,null,null,null,null,null,null,null,null,null,null,null,null,null,null,null,null,null,null,null,null,"御中"]
[]
[null,null,null,null,null,null,null,null,null,null,null,null,null,null,null,null,null,null,null,null,null,null,null,null,null,null,null,null,null,null,null,null,null,null,null,null,null,null,null,null,null,"〒",null,null,null,null,{"$f":"AU11","v":""},null,{"$f":"AY11","v":""},null,{"$f":"+IF(入力シート!S101=\"\",\"\",+入力シート!S101)","v":""},null,"－",null,{"$f":"BC11","v":""},null,{"$f":"BE11","v":""},null,{"$f":"BG11","v":""},null,{"$f":"BI11","v":""}]
[]
[null,null,null,null,null,null,"下記の通り請求致します"]
[null,null,null,null,null,null,null,null,null,null,null,null,null,null,null,null,null,null,null,null,null,null,null,null,null,null,null,null,null,null,null,null,null,null,null,null,null,null,null,null,null,"住所",null,null,null,null,{"$f":"AU14","v":""}]
[]
[]
[null,null,null,null,null,null,null,null,null,null,null,null,null,null,null,null,null,null,null,null,null,null,null,null,null,null,null,null,null,null,null,null,null,null,null,null,null,null,null,null,null,"会社名",null,null,null,null,{"$f":"AU17","v":""},null,null,null,null,null,null,null,null,null,null,null,null,null,null,null,null,null,null,null,null,"㊞"]
[]
[]
[null,null,null,null,null,null,null,null,null,null,null,null,null,null,null,null,null,null,null,null,null,null,null,null,null,null,null,null,null,null,null,null,null,null,null,null,null,null,null,null,null,"電話",null,null,null,null,{"$f":"AU20","v":""}]
[]
[null,null,"今回請求金額",null,null,null,null,{"$f":"H22","v":""}]
[null,null,null,null,null,null,null,null,null,null,null,null,null,null,null,null,null,null,null,null,null,null,null,null,null,null,null,null,null,null,null,null,null,null,null,null,null,null,null,null,null,"FAX",null,null,null,null,{"$f":"AU23","v":""}]
[]
[]
[null,null,null,null,null,null,null,"本体価格（税抜）",null,null,null,null,null,null,null,null,null,{"$f":"R26","v":0},null,null,null,null,null,null,null,null,null,null,null,null,null,null,null,null,null,null,null,null,null,null,null,"登録\n番号",null,null,null,null,{"$f":"AU26","v":""}]
[]
[]
[]
[null,null,null,null,null,null,null,"消費税",null,null,null,null,0.1,null,null,null,null,{"$f":"R30","v":0}]
[]
[]
[]
[]
[]
[null,null,"工事番号",null,null,null,null,null,null,null,"現場名",null,null,null,null,null,null,null,null,null,null,null,null,null,null,null,null,null,"本体価格（税抜）",null,null,null,null,null,null,null,null,null,null,null,null,null,null,"消費税（10％）",null,null,null,null,null,null,null,null,null,null,"備考"]
[]
[]
[null,null,null,null,null,null,null,null,null,null,null,null,null,null,null,null,null,null,null,null,null,null,null,null,null,null,null,null,null,null,null,null,null,null,null,null,null,null,null,null,null,null,null,null,null,null,null,null,null,null,null,null,null,null,{"$f":"IF(AP133*AY133,AP133*AY133,\"\")","v":""}]
[]
[]
[null,null,null,null,null,null,null,null,null,null,null,null,null,null,null,null,null,null,null,null,null,null,null,null,null,null,null,null,null,null,null,null,null,null,null,null,null,null,null,null,null,null,null,null,null,null,null,null,null,null,null,null,null,null,{"$f":"IF(AP136*AY136,AP136*AY136,\"\")","v":""}]
[]
[]
[null,null,null,null,null,null,null,null,null,null,null,null,null,null,null,null,null,null,null,null,null,null,null,null,null,null,null,null,null,null,null,null,null,null,null,null,null,null,null,null,null,null,null,null,null,null,null,null,null,null,null,null,null,null,{"$f":"IF(AP139*AY139,AP139*AY139,\"\")","v":""}]
[]
[]
[null,null,null,null,null,null,null,null,null,null,null,null,null,null,null,null,null,null,null,null,null,null,null,null,null,null,null,null,null,null,null,null,null,null,null,null,null,null,null,null,null,null,null,null,null,null,null,null,null,null,null,null,null,null,{"$f":"IF(AP142*AY142,AP142*AY142,\"\")","v":""}]
[]
[]
[null,null,null,null,null,null,null,null,null,null,null,null,null,null,null,null,null,null,null,null,null,null,null,null,null,null,null,null,null,null,null,null,null,null,null,null,null,null,null,null,null,null,null,null,null,null,null,null,null,null,null,null,null,null,{"$f":"IF(AP145*AY145,AP145*AY145,\"\")","v":""}]
[]
[]
[null,null,"合計",null,null,null,null,null,null,null,null,null,null,null,null,null,null,null,null,null,null,null,null,null,null,null,null,null,null,null,null,null,null,null,null,null,null,null,null,null,null,null,null,null,null,null,null,null,null,null,null,null,null,null,{"$f":"IF(AP148*AY148,AP148*AY148,\"\")","v":""}]
[]
[]
[]
[]
[null,null,"振込先情報",null,null,null,"銀行名",null,null,null,null,null,null,null,{"$f":"O59","v":""},null,null,null,null,null,null,null,null,null,null,"支店名",null,null,null,null,null,null,null,{"$f":"AH59","v":""}]
[]
[]
[null,null,null,null,null,null,"預金種別",null,null,null,null,null,null,null,{"$f":"O62","v":""},null,null,null,null,null,null,null,"口座番号",null,null,null,null,null,null,null,{"$f":"AE62","v":""},null,{"$f":"AG62","v":""},null,{"$f":"AI62","v":""},null,{"$f":"AK62","v":""},null,{"$f":"AM62","v":""},null,{"$f":"AO62","v":""},null,{"$f":"AQ62","v":""}]
[]
[]
[null,null,null,null,null,null,"口座名義\n（カタカナ）",null,null,null,null,null,null,null,{"$f":"O65","v":""}]
[]
[]
[]
[]
[null,null,"湘南推進工業使用欄",null,null,null,null,null,null,null,null,null,null,null,null,null,null,null,null,null,null,null,null,null,null,null,null,null,null,null,"社長",null,null,null,null,null,null,"役員",null,null,null,null,null,null,"工事部",null,null,null,null,null,null,null,null,null,null,null,null,null,"総務部"]
[]
[null,null,null,null,null,null,null,null,null,null,null,null,null,null,null,null,null,null,null,null,null,null,null,null,null,null,null,null,null,null,null,null,null,null,null,null,null,null,null,null,null,null,null,null,"部長",null,null,null,null,null,null,"担当者",null,null,null,null,null,null,"部長",null,null,null,null,null,null,"経理"]
[]
[]
[]
[]
[]
[]
[]
[]
[]
[]
[null,null,"《記入上のお願い》"]
[]
[]
[null,null,null,null,"☆　請求書は、毎月末日〆、翌月10日必着です。必ず押印の上、1部提出でお願いいたします。"]
[]
[]
[null,null,null,null,"☆　請求書は、必ず一現場につき一枚でご提出ください（複数現場の場合）。"]
[]
[]
[null,null,null,null,"☆　請求現場が複数ある場合は、各現場の請求書とともに、必ず総括内訳書もご提出ください。"]